bitfinex/quotes_BTCUSD_20241013
["timestamp","ask_amount","ask_price","bid_price","bid_amount"]
[1728832618513,0.161379,62352.0,62351.0,0.018819]
[1728832618760,0.33060027,62352.0,62351.0,0.018819]
[1728832619715,0.161379,62352.0,62351.0,0.018819]
[1728832620468,0.33060027,62352.0,62351.0,0.018819]
[1728832625867,0.53010027,62352.0,62351.0,0.018819]
[1728832626107,0.5714439,62352.0,62351.0,0.018819]
[1728832627578,0.80391249,62352.0,62351.0,0.018819]
[1728832628078,0.76272978,62352.0,62351.0,0.018819]
[1728832628578,0.86172978,62352.0,62351.0,0.000819]
[1728832628845,0.86172978,62352.0,62351.0,0.006819]
[1728832629077,0.70836119,62352.0,62351.0,0.004819]
[1728832629557,0.70836119,62352.0,62351.0,0.001819]
[1728832629805,0.70836119,62352.0,62351.0,0.004819]
[1728832630639,0.8695852,62352.0,62351.0,0.004819]
[1728832631139,1.03095491,62352.0,62351.0,0.004819]
[1728832631597,1.65397291,62352.0,62351.0,0.004819]
[1728832631816,1.65397291,62352.0,62351.0,0.001819]
[1728832632044,1.65697291,62352.0,62351.0,0.000819]
[1728832632569,1.65697291,62352.0,62351.0,0.001819]
[1728832632570,1.66097291,62352.0,62351.0,0.001819]
[1728832632819,1.67909266,62352.0,62351.0,0.000819]
[1728832633086,1.67909266,62352.0,62351.0,0.002819]
[1728832633087,0.90970495,62352.0,62351.0,0.002819]
[1728832634774,0.90670495,62352.0,62351.0,0.001819]
[1728832635036,0.90970495,62352.0,62351.0,0.002819]
[1728832635505,0.89770495,62352.0,62351.0,0.001819]
[1728832635747,0.92416429,62352.0,62351.0,0.001819]
[1728832635984,0.70156438,62348.0,62347.0,0.00386691]
[1728832636216,1.02317839,62348.0,62347.0,0.00386691]
[1728832636456,0.8537962,62348.0,62347.0,0.00386691]
[1728832636681,0.68441401,62348.0,62347.0,0.00386691]
[1728832636914,0.8537962,62348.0,62347.0,0.00386691]
[1728832637145,0.8487962,62348.0,62347.0,0.00386691]
[1728832637386,0.8537962,62348.0,62347.0,0.00386691]
[1728832637648,0.8537962,62348.0,62347.0,0.00486691]
[1728832637649,0.8547962,62348.0,62347.0,0.00486691]
[1728832638130,0.8577962,62348.0,62347.0,0.00486691]
[1728832638590,1.3577962,62348.0,62347.0,0.00486691]
[1728832642885,1.38291643,62348.0,62347.0,0.00486691]
[1728832644474,1.38455443,62348.0,62347.0,0.00486691]
[1728832644698,1.55893662,62348.0,62347.0,0.00486691]
[1728832644931,1.55092414,62348.0,62347.0,0.00486691]
[1728832645190,1.54592414,62348.0,62347.0,0.00486691]
[1728832645609,1.37654195,62348.0,62347.0,0.00486691]
[1728832645615,1.54592414,62348.0,62347.0,0.00486691]
[1728832645841,1.55092414,62348.0,62347.0,0.00486691]
[1728832646578,1.38955443,62348.0,62347.0,0.00486691]
[1728832646828,1.38455443,62348.0,62347.0,0.00486691]
[1728832647293,0.3519,62346.0,62345.0,0.000818]
[1728832647520,0.67351901,62346.0,62345.0,0.000818]
[1728832647983,0.83488872,62346.0,62345.0,0.000818]
[1728832649117,0.83988872,62346.0,62345.0,0.000818]
[1728832649362,0.84488872,62346.0,62345.0,0.000818]
[1728832651932,0.84346938,62342.0,62328.0,0.000819]
[1728832652161,1.1710631,62342.0,62328.0,0.000819]
[1728832652614,1.19618657,62342.0,62328.0,0.000819]
[1728832653460,1.19318657,62342.0,62328.0,0.000819]
[1728832653674,1.19818657,62342.0,62328.0,0.000819]
[1728832653901,0.42980819,62334.0,62333.0,99.952768]
[1728832655054,0.32980819,62334.0,62333.0,99.952768]
[1728832655494,0.32980819,62334.0,62333.0,99.942768]
[1728832655717,0.32980819,62334.0,62333.0,99.949768]
[1728832655931,0.82980819,62334.0,62333.0,99.949768]
[1728832656147,0.83080819,62334.0,62333.0,99.952768]
[1728832657030,0.99470819,62334.0,62333.0,99.952768]
[1728832658647,1.6711841,62334.0,62333.0,99.45658353]
[1728832658869,1.50180191,62334.0,62333.0,99.45658353]
[1728832659569,1.50080191,62334.0,62333.0,99.45358353]
[1728832659807,1.17405001,62334.0,62333.0,99.44658353]
[1728832660045,1.3434322,62334.0,62333.0,99.44658353]
[1728832660293,1.3454322,62334.0,62333.0,99.44658353]
[1728832660518,1.52556348,62334.0,62333.0,99.44658353]
[1728832661043,1.19281158,62334.0,62333.0,99.44658353]
[1728832661288,1.36219377,62334.0,62333.0,99.44658353]
[1728832661549,1.35119377,62334.0,62333.0,99.44658353]
[1728832661778,1.19496976,62334.0,62333.0,99.44658353]
[1728832662042,1.19996976,62334.0,62333.0,99.44658353]
[1728832662277,0.68718757,62334.0,62333.0,99.44658353]
[1728832662729,0.68218757,62334.0,62333.0,99.44658353]
[1728832662962,0.85856976,62334.0,62333.0,99.44658353]
[1728832663482,1.00213454,62334.0,62333.0,99.44658353]
[1728832663958,0.94180819,62334.0,62333.0,99.44658353]
[1728832665455,0.772426,62334.0,62333.0,99.44658353]
[1728832666474,0.94180819,62334.0,62333.0,99.44658353]
[1728832670669,1.1030322,62334.0,62333.0,99.44658353]
[1728832672759,1.12815802,62334.0,62333.0,99.44658353]
[1728832678382,0.79755182,62334.0,62333.0,99.44658353]
[1728832678875,0.89755182,62334.0,62333.0,99.44658353]
[1728832679098,0.96693401,62334.0,62333.0,99.44658353]
[1728832679535,0.94180819,62334.0,62333.0,99.44658353]
[1728832679757,0.774064,62334.0,62333.0,99.44658353]
[1728832679995,0.774064,62334.0,62333.0,99.61628353]
[1728832680245,0.774064,62334.0,62333.0,99.63610052]
[1728832680471,0.613638,62334.0,62333.0,99.71700066]
[1728832680914,0.613638,62334.0,62333.0,99.87822467]
[1728832681132,0.613638,62334.0,62333.0,99.96857208]
[1728832681351,0.601638,62334.0,62333.0,99.90122467]
[1728832681565,0.601638,62334.0,62333.0,99.94930826]
[1728832681791,0.601638,62334.0,62333.0,99.95730826]
[1728832682017,0.762064,62334.0,62333.0,99.97356129]
[1728832682237,0.762064,62334.0,62333.0,99.96856089]
[1728832682238,0.601638,62334.0,62333.0,99.96856089]
[1728832682503,0.602638,62334.0,62333.0,99.95330843]
[1728832682741,0.763064,62334.0,62333.0,99.96030843]
[1728832682968,0.763064,62334.0,62333.0,99.91222467]
[1728832682969,0.602638,62334.0,62333.0,99.91222467]
[1728832683197,0.763064,62334.0,62333.0,99.91222467]
[1728832683659,0.763064,62334.0,62333.0,99.72798338]
[1728832683896,0.93244619,62334.0,62333.0,99.46536027]
[1728832684172,0.93244619,62334.0,62333.0,99.45758353]
[1728832684390,0.43244619,62334.0,62333.0,99.45758353]
[1728832686979,0.87879962,62334.0,62333.0,99.45758353]
[1728832687440,0.7502702,62334.0,62333.0,99.45758353]
[1728832687903,0.7502702,62334.0,62333.0,99.45058353]
[1728832688345,0.7502702,62334.0,62333.0,99.44658353]
[1728832688346,0.7512702,62334.0,62333.0,99.44658353]
[1728832688785,0.7532702,62334.0,62333.0,99.44658353]
[1728832689022,1.01863991,62334.0,62333.0,99.44658353]
[1728832689254,1.01663991,62334.0,62333.0,99.44658353]
[1728832689479,1.51863991,62334.0,62333.0,99.44658353]
[1728832689705,1.51663991,62334.0,62333.0,99.44658353]
[1728832690142,1.51263991,62334.0,62333.0,99.44658353]
[1728832690384,1.51963991,62334.0,62333.0,99.44658353]
[1728832690857,1.51763991,62334.0,62333.0,99.44658353]
[1728832691299,1.3562702,62334.0,62333.0,99.44658353]
[1728832691520,1.3532702,62334.0,62333.0,99.44658353]
[1728832691742,1.3552702,62334.0,62333.0,99.44658353]
[1728832692196,1.3562702,62334.0,62333.0,99.44658353]
[1728832692424,1.19904619,62334.0,62333.0,99.44658353]
[1728832692652,1.06757267,62334.0,62333.0,99.44658353]
[1728832694298,1.27134879,62334.0,62333.0,99.44658353]
[1728832695679,1.52234879,62334.0,62333.0,99.44658353]
[1728832696555,1.47979668,62334.0,62333.0,99.44658353]
[1728832698178,1.48179668,62334.0,62333.0,98.95039906]
[1728832698453,1.73198668,62334.0,62333.0,98.95039906]
[1728832699078,1.72098668,62334.0,62333.0,98.94126364]
[1728832699299,1.72998668,62334.0,62333.0,98.94226364]
[1728832699508,2.07173858,62334.0,62333.0,98.94226364]
[1728832699724,2.0696121,62334.0,62333.0,98.94226364]
[1728832699938,1.90022991,62334.0,62333.0,98.94226364]
[1728832700151,2.0696121,62334.0,62333.0,98.94226364]
[1728832700597,1.87722991,62334.0,62333.0,98.94226364]
[1728832700820,1.87722991,62334.0,62333.0,98.03270184]
[1728832700821,2.0496121,62334.0,62333.0,98.03270184]
[1728832701254,2.0636121,62334.0,62333.0,98.03370184]
[1728832701473,1.89422991,62334.0,62333.0,98.03370184]
[1728832701683,1.88022991,62334.0,62333.0,98.03270184]
[1728832701954,2.0496121,62334.0,62333.0,98.03270184]
[1728832702222,2.0636121,62334.0,62333.0,98.03270184]
[1728832702653,2.07474379,62334.0,62333.0,98.03270184]
[1728832702867,2.10274379,62334.0,62333.0,98.03270184]
[1728832703585,2.11674379,62334.0,62333.0,98.03270184]
[1728832703835,1.76099189,62334.0,62333.0,98.03270184]
[1728832704064,1.72326389,62334.0,62333.0,98.03270184]
[1728832704286,1.72526389,62334.0,62333.0,98.03270184]
[1728832704711,1.3784817,62334.0,62333.0,98.03270184]
[1728832705000,1.33140189,62334.0,62333.0,98.03270184]
[1728832705211,1.34540189,62334.0,62333.0,98.03270184]
[1728832705453,0.9904197,62334.0,62333.0,98.03270184]
[1728832705664,1.14580189,62334.0,62333.0,98.03270184]
[1728832706086,1.13180189,62334.0,62333.0,98.03270184]
[1728832706313,1.14580189,62334.0,62333.0,98.03270184]
[1728832706749,0.80119569,62334.0,62333.0,98.27030184]
[1728832707186,0.81519569,62334.0,62333.0,98.27030184]
[1728832707666,0.790064,62334.0,62333.0,98.27030184]
[1728832707892,0.776064,62334.0,62333.0,98.27030184]
[1728832708107,0.790064,62334.0,62333.0,98.27130184]
[1728832708565,0.762064,62334.0,62333.0,98.27030184]
[1728832709003,0.780064,62334.0,62333.0,98.27030184]
[1728832709215,0.766064,62334.0,62333.0,98.27030184]
[1728832709699,0.773064,62334.0,62333.0,98.27030184]
[1728832710386,0.773064,62334.0,62333.0,98.03270184]
[1728832712889,0.93428801,62334.0,62333.0,98.03270184]
[1728832713106,1.03628801,62334.0,62333.0,98.03270184]
[1728832713320,1.03428801,62334.0,62333.0,98.03270184]
[1728832713541,1.02928801,62334.0,62333.0,98.03270184]
[1728832713739,1.1986702,62334.0,62333.0,98.03270184]
[1728832713967,1.38516875,62334.0,62333.0,98.03270184]
[1728832715058,1.05441685,62334.0,62333.0,98.03270184]
[1728832715707,1.22379904,62334.0,62333.0,98.03270184]
[1728832716579,1.22579904,62334.0,62333.0,98.03270184]
[1728832716788,1.05441685,62334.0,62333.0,98.03270184]
[1728832717455,1.05641685,62334.0,62333.0,98.03270184]
[1728832717677,1.21578656,62334.0,62333.0,98.03270184]
[1728832719716,1.19065772,62334.0,62333.0,98.03270184]
[1728832720309,2.25615672,62334.0,62333.0,98.03270184]
[1728832720525,2.26115672,62334.0,62333.0,98.03270184]
[1728832720790,2.32683736,62334.0,62333.0,98.03270184]
[1728832721002,2.43955672,62334.0,62333.0,98.03270184]
[1728832721472,2.43255672,62334.0,62333.0,98.03270184]
[1728832721691,2.44655672,62334.0,62333.0,98.03270184]
[1728832722341,2.46055672,62334.0,62333.0,97.58663009]
[1728832722588,2.44255672,62334.0,62333.0,97.58663009]
[1728832722806,2.46768882,62334.0,62333.0,97.51909066]
[1728832723039,2.48868882,62334.0,62333.0,97.52009066]
[1728832723259,2.46068882,62334.0,62333.0,97.52009066]
[1728832723499,2.46068882,62334.0,62333.0,97.49265795]
[1728832724643,2.46768882,62334.0,62333.0,97.4672904]
[1728832724855,2.45368882,62334.0,62333.0,97.4672904]
[1728832725063,2.46768882,62334.0,62333.0,97.4672904]
[1728832726373,2.48168882,62334.0,62333.0,97.4672904]
[1728832727535,2.48168882,62334.0,62333.0,97.28793879]
[1728832727750,2.52913814,62334.0,62333.0,97.28793879]
[1728832728188,2.48168882,62334.0,62333.0,97.28793879]
[1728832728443,2.48168882,62334.0,62333.0,96.76096847]
[1728832729146,2.52913462,62334.0,62333.0,96.76096847]
[1728832729371,2.51513462,62334.0,62333.0,96.76096847]
[1728832729606,2.47600252,62334.0,62333.0,96.76096847]
[1728832729828,2.50400619,62334.0,62333.0,96.76096847]
[1728832730063,2.45655672,62334.0,62333.0,96.76096847]
[1728832730313,2.52223736,62334.0,62333.0,96.60053847]
[1728832730540,2.52223736,62334.0,62333.0,96.56845247]
[1728832730541,2.45655672,62334.0,62333.0,96.56845247]
[1728832730782,2.45655672,62334.0,62333.0,96.47219447]
[1728832731271,2.45655672,62334.0,62333.0,96.44010847]
[1728832731528,2.45655672,62334.0,62333.0,96.40802247]
[1728832732253,2.45655672,62334.0,62333.0,96.37593647]
[1728832732485,2.45655672,62334.0,62333.0,96.31176447]
[1728832732721,2.48169129,62334.0,62333.0,96.24759247]
[1728832733460,2.58158994,62334.0,62333.0,96.13369858]
[1728832734398,2.48669129,62334.0,62333.0,96.10161258]
[1728832735327,2.48669129,62334.0,62333.0,96.06952658]
[1728832735564,2.48669129,62334.0,62333.0,96.00535458]
[1728832735794,2.48669129,62334.0,62333.0,95.94118258]
[1728832736527,2.48669129,62334.0,62333.0,95.84492458]
[1728832736784,2.52478158,62334.0,62333.0,95.12612842]
[1728832737014,2.68528689,62334.0,62333.0,95.12612842]
[1728832737246,2.68528689,62334.0,62333.0,94.99785673]
[1728832737478,2.68528689,62334.0,62333.0,94.49862921]
[1728832737724,2.59046222,62334.0,62333.0,94.49862921]
[1728832737960,2.59046222,62334.0,62333.0,94.47719373]
[1728832737961,2.73075463,62334.0,62333.0,94.47719373]
[1728832738218,3.29822379,62334.0,62333.0,94.30679373]
[1728832738463,7.41067444,62334.0,62333.0,91.92770939]
[1728832738698,7.41067444,62334.0,62333.0,91.22014503]
[1728832739167,7.38267444,62334.0,62333.0,90.61574256]
[1728832739407,7.39667444,62334.0,62333.0,90.55226998]
[1728832739665,7.21643987,62334.0,62333.0,90.20048441]
[1728832739934,6.61118916,62334.0,62333.0,90.20048441]
[1728832740192,6.59718916,62334.0,62333.0,90.20048441]
[1728832740444,5.54661158,62334.0,62333.0,90.20048441]
[1728832740691,5.53261158,62334.0,62333.0,90.20048441]
[1728832740926,5.57999117,62334.0,62333.0,90.20048441]
[1728832741407,5.52361158,62334.0,62333.0,90.04005441]
[1728832741636,5.53761158,62334.0,62333.0,89.91171041]
[1728832741869,5.67905749,62334.0,62333.0,89.91171041]
[1728832742356,5.54661158,62334.0,62333.0,89.91171041]
[1728832742601,5.54661158,62334.0,62333.0,89.52584423]
[1728832742848,1.29642686,62334.0,62333.0,88.43539432]
[1728832743090,1.51063473,62334.0,62333.0,83.99779035]
[1728832743328,1.87708264,62334.0,62333.0,78.06812846]
[1728832743564,6.85819922,62334.0,62333.0,74.83200028]
[1728832744080,7.53557341,62334.0,62333.0,73.53830513]
[1728832744082,7.53557341,62334.0,62333.0,73.05230513]
[1728832744339,7.50757341,62334.0,62333.0,72.89030513]
[1728832744585,7.50757341,62334.0,62333.0,72.72987513]
[1728832744586,7.52157341,62334.0,62333.0,72.72987513]
[1728832744835,7.58984466,62334.0,62333.0,72.71232913]
[1728832745091,6.88984466,62334.0,62333.0,72.71232913]
[1728832745341,6.80757341,62334.0,62333.0,72.71232913]
[1728832745615,6.80757341,62334.0,62333.0,72.55189913]
[1728832745616,6.56957341,62334.0,62333.0,72.55189913]
[1728832746129,6.63784466,62334.0,62333.0,72.55189913]
[1728832746397,6.88784466,62334.0,62333.0,72.55189913]
[1728832746631,6.88784466,62334.0,62333.0,72.39146913]
[1728832746632,6.94051266,62334.0,62333.0,72.39146913]
[1728832746893,6.95291543,62334.0,62333.0,72.39146913]
[1728832747120,6.84424141,62334.0,62333.0,72.39146913]
[1728832747349,6.87224141,62334.0,62333.0,70.78540764]
[1728832747589,6.81957341,62334.0,62333.0,70.62497764]
[1728832747846,6.80557341,62334.0,62333.0,70.62497764]
[1728832748077,6.81957341,62334.0,62333.0,70.30328449]
[1728832748335,6.83357341,62334.0,62333.0,69.65989315]
[1728832748584,6.88851581,62334.0,62333.0,69.27402297]
[1728832748839,1.83851581,62334.0,62333.0,68.52437592]
[1728832749072,1.91149319,62334.0,62333.0,67.88098459]
[1728832749556,2.00616,62334.0,62333.0,67.64934905]
[1728832749791,2.04166613,62334.0,62333.0,67.64934905]
[1728832750024,2.02766613,62334.0,62333.0,67.64934905]
[1728832750508,1.91899932,62334.0,62333.0,67.18270762]
[1728832750511,1.93299932,62334.0,62333.0,67.08584962]
[1728832750755,1.94699932,62334.0,62333.0,67.02167762]
[1728832750996,1.93299932,62334.0,62333.0,67.02167762]
[1728832751249,1.94699932,62334.0,62333.0,67.02167762]
[1728832751494,1.94699932,62334.0,62333.0,66.98959162]
[1728832751753,1.94699932,62334.0,62333.0,66.86019462]
[1728832751988,2.02529106,62334.0,62333.0,66.56887741]
[1728832752222,6.7244237,62334.0,62333.0,66.56887741]
[1728832752488,6.54537581,62334.0,62333.0,66.50470541]
[1728832752747,6.54537603,62334.0,62333.0,66.39244741]
[1728832753006,6.4744237,62334.0,62333.0,66.39244741]
[1728832753522,1.74212413,62334.0,62333.0,66.23201741]
[1728832753760,1.69549547,62334.0,62333.0,66.23201741]
[1728832753996,1.70445151,62334.0,62333.0,66.23201741]
[1728832754236,1.69945151,62334.0,62333.0,66.23201741]
[1728832754470,6.59409573,62334.0,62333.0,66.07158741]
[1728832754718,6.60809573,62334.0,62333.0,66.07158741]
[1728832755194,6.59409573,62334.0,62333.0,66.07158741]
[1728832755454,7.19945151,62334.0,62333.0,66.07158741]
[1728832755684,7.46345151,62334.0,62333.0,65.91115741]
[1728832756386,7.58173012,62334.0,62333.0,65.91115741]
[1728832756652,7.6068751,62334.0,62333.0,65.84698541]
[1728832756887,7.48859649,62334.0,62333.0,65.81489941]
[1728832757148,7.60700867,62334.0,62333.0,65.75072741]
[1728832757406,7.48859649,62334.0,62333.0,65.75072741]
[1728832757657,7.48859649,62334.0,62333.0,65.71864141]
[1728832757927,7.48859649,62334.0,62333.0,65.59029741]
[1728832758152,7.66269649,62334.0,62333.0,65.59029741]
[1728832758409,7.64662472,62334.0,62333.0,65.59029741]
[1728832758633,2.59662472,62334.0,62333.0,65.42986741]
[1728832758859,2.42752472,62334.0,62333.0,65.42986741]
[1728832759086,7.47252472,62334.0,62333.0,65.42986741]
[1728832759354,2.42252472,62334.0,62333.0,65.42986741]
[1728832759582,7.43780603,62334.0,62333.0,65.26943741]
[1728832759800,2.12223983,62334.0,62333.0,65.26943741]
[1728832760491,1.42223983,62334.0,62333.0,65.26943741]
[1728832760722,6.47223983,62334.0,62333.0,65.23735141]
[1728832761207,6.47223983,62334.0,62333.0,65.10900741]
[1728832761440,6.57223983,62334.0,62333.0,65.10900741]
[1728832762084,7.27223983,62334.0,62333.0,65.04483541]
[1728832762288,7.27223983,62334.0,62333.0,64.94857741]
[1728832762492,7.27223983,62334.0,62333.0,64.78814741]
[1728832762493,7.5473782,62334.0,62333.0,64.78814741]
[1728832762697,7.6473782,62334.0,62333.0,64.78814741]
[1728832763175,7.71451331,62334.0,62333.0,64.78814741]
[1728832763406,7.71451331,62334.0,62333.0,64.72397541]
[1728832763407,7.6473782,62334.0,62333.0,64.72397541]
[1728832763643,7.66339815,62334.0,62333.0,64.65980341]
[1728832763865,7.6633981,62334.0,62333.0,64.65400341]
[1728832764577,7.4083981,62334.0,62333.0,64.65400341]
[1728832764806,7.4133981,62334.0,62333.0,64.52565941]
[1728832765473,7.4133981,62334.0,62333.0,64.46148741]
[1728832765739,7.4133981,62334.0,62333.0,64.30648306]
[1728832766192,6.69737815,62334.0,62333.0,64.30648306]
[1728832766406,6.8398617,62334.0,62333.0,64.30648306]
[1728832766841,1.7948617,62334.0,62333.0,64.21022506]
[1728832767066,1.65237815,62334.0,62333.0,64.14605306]
[1728832767326,1.74097815,62334.0,62333.0,64.14605306]
[1728832767536,1.99097815,62334.0,62333.0,63.98562306]
[1728832767770,2.69097815,62334.0,62333.0,63.98562306]
[1728832768008,2.92221326,62334.0,62333.0,63.55877807]
[1728832768243,2.86301829,62334.0,62333.0,63.47985144]
[1728832768496,2.89853666,62334.0,62333.0,62.79976544]
[1728832768719,2.89853666,62334.0,62333.0,62.70350744]
[1728832768935,2.88453666,62334.0,62333.0,62.67142144]
[1728832769384,2.79948191,62334.0,62333.0,62.59932798]
[1728832769821,2.48112517,62334.0,62333.0,62.43889798]
[1728832770050,2.46712517,62334.0,62333.0,62.43889798]
[1728832770548,2.46712517,62334.0,62333.0,62.27846798]
[1728832770549,2.48112517,62334.0,62333.0,62.27846798]
[1728832770784,2.46712517,62334.0,62333.0,62.27846798]
[1728832771455,2.46712517,62334.0,62333.0,62.21429598]
[1728832771456,2.48112517,62334.0,62333.0,62.21429598]
[1728832771680,2.48112517,62334.0,62333.0,62.11803798]
[1728832771903,2.64153944,62334.0,62333.0,62.11803798]
[1728832772144,2.48112517,62334.0,62333.0,62.11803798]
[1728832772395,2.48112517,62334.0,62333.0,62.12203108]
[1728832772396,2.63653571,62334.0,62333.0,62.12203108]
[1728832772630,2.7297332,62334.0,62333.0,61.96160108]
[1728832772848,7.61932266,62334.0,62333.0,61.96160108]
[1728832773088,2.56932266,62334.0,62333.0,61.96160108]
[1728832773322,8.02884388,62334.0,62333.0,61.43777364]
[1728832773578,2.73842266,62334.0,62333.0,61.40568764]
[1728832773827,2.73842266,62334.0,62333.0,61.34151564]
[1728832773828,2.8988905,62334.0,62333.0,61.34151564]
[1728832774062,2.89890935,62334.0,62333.0,61.27734364]
[1728832774317,2.89890935,62334.0,62333.0,61.11534364]
[1728832774501,2.73845307,62334.0,62333.0,60.92125764]
[1728832774807,2.85906307,62334.0,62333.0,60.62657405]
[1728832775569,2.85906307,62334.0,62333.0,60.59448805]
[1728832775815,2.54135307,62334.0,62333.0,60.49823005]
[1728832776105,2.54135307,62334.0,62333.0,60.46614405]
[1728832776311,2.52735307,62334.0,62333.0,60.46614405]
[1728832776533,2.84501048,62334.0,62333.0,60.30571405]
[1728832776767,2.68453572,62334.0,62333.0,60.30571405]
[1728832777003,2.67053572,62334.0,62333.0,60.30571405]
[1728832777231,2.86805222,62334.0,62333.0,60.30571405]
[1728832777471,2.70753572,62334.0,62333.0,60.30571405]
[1728832778646,2.77059307,62334.0,62333.0,60.11319805]
[1728832779599,2.77059307,62334.0,62333.0,60.01694005]
[1728832779830,2.74545293,62334.0,62333.0,59.9407724]
[1728832780582,2.83405293,62334.0,62333.0,58.77321067]
[1728832781604,2.83405293,62334.0,62333.0,58.74112467]
[1728832781852,2.83405293,62334.0,62333.0,58.6623684]
[1728832782076,2.77099558,62334.0,62333.0,58.5981964]
[1728832782327,2.77099558,62334.0,62333.0,58.2053664]
[1728832782561,2.75699558,62334.0,62333.0,58.1411944]
[1728832782834,2.63625558,62334.0,62333.0,57.86265973]
[1728832783073,2.34815558,62334.0,62333.0,57.86265973]
[1728832783321,6.99632558,62334.0,62333.0,57.86265973]
[1728832783797,6.7894834,62334.0,62333.0,57.86265973]
[1728832784053,6.99630921,62334.0,62333.0,57.86265973]
[1728832784549,7.09130921,62334.0,62333.0,57.86265973]
[1728832784795,7.11930921,62334.0,62333.0,57.86265973]
[1728832785092,6.41930921,62334.0,62333.0,57.86265973]
[1728832785560,6.52830921,62334.0,62333.0,57.86265973]
[1728832785821,7.21546656,62334.0,62333.0,57.83057373]
[1728832786070,7.21546656,62334.0,62333.0,57.70222973]
[1728832786315,2.55829656,62334.0,62333.0,57.70222973]
[1728832786571,2.80829656,62334.0,62333.0,57.60597173]
[1728832786812,2.84050656,62334.0,62333.0,57.54179973]
[1728832787297,2.82650656,62334.0,62333.0,57.54179973]
[1728832787512,2.83764815,62334.0,62333.0,57.38136973]
[1728832788017,2.7745908,62334.0,62333.0,57.38136973]
[1728832788488,2.7885908,62334.0,62333.0,57.38136973]
[1728832788754,2.1025908,62334.0,62333.0,57.31719773]
[1728832789029,2.1025908,62334.0,62333.0,57.22093973]
[1728832789260,2.0885908,62334.0,62333.0,57.22093973]
[1728832789497,2.1025908,62334.0,62333.0,57.15676773]
[1728832789714,2.07744921,62334.0,62333.0,57.09259573]
[1728832790631,2.14050656,62334.0,62333.0,57.06050973]
[1728832790878,2.14050656,62334.0,62333.0,57.02842373]
[1728832792746,2.16564826,62334.0,62333.0,56.99633773]
[1728832792967,2.16564826,62334.0,62333.0,56.93216573]
[1728832793183,2.16564826,62334.0,62333.0,56.86799373]
[1728832793406,2.86564826,62334.0,62333.0,56.86799373]
[1728832793844,2.86566918,62334.0,62333.0,56.86799373]
[1728832796101,2.86566918,62334.0,62333.0,56.80382173]
[1728832796830,2.86566918,62334.0,62333.0,56.73964973]
[1728832797074,2.16566918,62334.0,62333.0,56.67547773]
[1728832797309,2.16566918,62334.0,62333.0,56.64339173]
[1728832797539,2.26566918,62334.0,62333.0,56.61130573]
[1728832797789,2.26566918,62334.0,62333.0,56.51504773]
[1728832798022,2.26566918,62334.0,62333.0,56.48296173]
[1728832798432,2.96566918,62334.0,62333.0,56.38670373]
[1728832798677,2.96566918,62334.0,62333.0,56.35461773]
[1728832798897,2.96566918,62334.0,62333.0,56.32253173]
[1728832799330,2.26566918,62334.0,62333.0,56.32253173]
[1728832799553,2.26566918,62334.0,62333.0,56.25835973]
[1728832799782,2.24052748,62334.0,62333.0,56.16210173]
[1728832799997,2.94022748,62334.0,62333.0,56.16210173]
[1728832800517,2.94022748,62334.0,62333.0,56.13001573]
[1728832800718,2.94022748,62334.0,62333.0,56.00167173]
[1728832801154,3.21467013,62334.0,62333.0,56.00167173]
[1728832801374,3.19790856,62334.0,62333.0,56.00167173]
[1728832802046,2.49790856,62334.0,62333.0,56.00167173]
[1728832802269,3.19790856,62334.0,62333.0,56.00167173]
[1728832803809,3.19790866,62334.0,62333.0,56.00167173]
[1728832804030,2.52304929,62334.0,62333.0,56.00167173]
[1728832804301,2.59123414,62334.0,62333.0,56.00167173]
[1728832805009,3.29123414,62334.0,62333.0,56.00167173]
[1728832806136,3.29153414,62334.0,62333.0,56.27267173]
[1728832806376,3.12213414,62334.0,62333.0,56.27267173]
[1728832807493,3.29153414,62334.0,62333.0,56.27267173]
[1728832807724,2.59153414,62334.0,62333.0,56.27267173]
[1728832808211,2.42213414,62334.0,62333.0,56.27267173]
[1728832808719,3.12213414,62334.0,62333.0,56.08237173]
[1728832809488,3.09699351,62334.0,62333.0,56.08237173]
[1728832809987,3.02880866,62334.0,62333.0,56.08237173]
[1728832810520,3.02880866,62334.0,62333.0,55.92194173]
[1728832810762,3.02880866,62334.0,62333.0,55.85776973]
[1728832810997,3.02880866,62334.0,62333.0,55.77706973]
[1728832810998,3.19820866,62334.0,62333.0,55.77706973]
[1728832811275,3.19820866,62334.0,62333.0,55.67710604]
[1728832811533,3.19820866,62334.0,62333.0,55.58084804]
[1728832811762,3.19820866,62334.0,62333.0,55.47259204]
[1728832812206,3.02880866,62334.0,62333.0,54.30866504]
[1728832812434,3.03380866,62334.0,62333.0,54.27657904]
[1728832812661,3.03380866,62334.0,62333.0,53.76556404]
[1728832813130,3.19447175,62334.0,62333.0,52.99152204]
[1728832813591,3.02880866,62334.0,62333.0,51.93073004]
[1728832813836,3.02882451,62334.0,62333.0,51.88647361]
[1728832814059,3.08188653,62334.0,62333.0,52.06083366]
[1728832814318,4.36158653,62334.0,62333.0,52.06083366]
[1728832814595,4.50441981,62334.0,62333.0,52.06083366]
[1728832814853,4.11158653,62334.0,62333.0,52.06083366]
[1728832815353,4.09758653,62334.0,62333.0,52.06083366]
[1728832815600,4.12058653,62334.0,62333.0,52.06083366]
[1728832815836,4.12558653,62334.0,62333.0,52.06083366]
[1728832816086,2.79967653,62334.0,62333.0,52.06083366]
[1728832816300,3.9864373,62334.0,62333.0,52.06083366]
[1728832816523,3.83194947,62334.0,62333.0,52.06083366]
[1728832816753,3.74864947,62334.0,62333.0,52.06083366]
[1728832816984,3.54864947,62334.0,62333.0,52.06083366]
[1728832817250,3.65368978,62334.0,62333.0,52.06083366]
[1728832817495,2.96707547,62334.0,62333.0,52.06083366]
[1728832817707,2.98107547,62334.0,62333.0,52.06083366]
[1728832817928,2.99307547,62334.0,62333.0,52.06083366]
[1728832818157,3.08987472,62334.0,62333.0,52.06083366]
[1728832818392,3.17587472,62334.0,62333.0,52.06083366]
[1728832818615,3.19151072,62334.0,62333.0,52.06083366]
[1728832818840,3.17751072,62334.0,62333.0,52.06083366]
[1728832819066,2.78838479,62334.0,62333.0,52.06083366]
[1728832819293,2.85335504,62334.0,62333.0,52.06083366]
[1728832819559,1.23233165,62334.0,62333.0,52.06083366]
[1728832819784,2.48894165,62334.0,62333.0,52.06083366]
[1728832820001,2.486172,62334.0,62333.0,52.06083366]
[1728832820224,1.649372,62334.0,62333.0,52.06083366]
[1728832820460,1.649372,62334.0,62333.0,51.86133366]
[1728832820461,1.25869138,62334.0,62333.0,51.86133366]
[1728832820695,0.07130938,62334.0,62333.0,51.78563366]
[1728832820893,0.014,62334.0,62333.0,51.78563366]
[1728832821458,0.24042122,62342.0,62333.0,51.78563366]
[1728832821717,0.48842808,62334.0,62333.0,51.80863366]
[1728832821959,0.014,62334.0,62333.0,51.97000337]
[1728832822953,0.025571,62334.0,62333.0,51.97000337]
[1728832823199,0.011571,62334.0,62333.0,51.97000337]
[1728832823436,0.022571,62334.0,62333.0,51.97000337]
[1728832823942,0.023571,62334.0,62333.0,51.97100337]
[1728832824172,0.023571,62334.0,62333.0,51.97000337]